[Event "*** SCC Grand Prix: Titled Tuesday Blitz"]
[Site "Chess.com"]
[Date "2020.06.02"]
[Round "1"]
[White "Robert_Chessmood"]
[Black "LuckSlayeer"]
[Result "0-1"]
[WhiteElo "2915"]
[BlackElo "2456"]
[TimeControl "180+1"]
[EndTime "10:01:35 PDT"]
[Termination "LuckSlayeer won by resignation"]

1. e4 {[%clk 0:02:55.2]} 1... c5 {[%clk 0:02:59.7]} 2. Nf3 {[%clk 0:02:55.1]}
2... Nc6 {[%clk 0:03:00]} 3. d4 {[%clk 0:02:55]} 3... cxd4 {[%clk 0:03:00.9]} 4.
Nxd4 {[%clk 0:02:55.9]} 4... e5 {[%clk 0:03:01.5]} 5. Nb5 {[%clk 0:02:54.7]}
5... d6 {[%clk 0:03:01.9]} 6. N1c3 {[%clk 0:02:55]} 6... a6 {[%clk 0:03:02.4]}
7. Na3 {[%clk 0:02:55.3]} 7... b5 {[%clk 0:03:03.1]} 8. Nd5 {[%clk 0:02:53.9]}
8... Nce7 {[%clk 0:03:03.4]} 9. c4 {[%clk 0:02:42.8]} 9... Nxd5 {[%clk
0:03:03.1]} 10. exd5 {[%clk 0:02:41.1]} 10... bxc4 {[%clk 0:03:03.2]} 0-1

[Event "*** SCC Grand Prix: Titled Tuesday Blitz"]
[Site "Chess.com"]
[Date "2020.06.02"]
[Round "1"]
[White "Leonid_Starozhilov"]
[Black "Tenamu"]
[Result "1-0"]
[WhiteElo "2719"]
[BlackElo "2360"]
[TimeControl "180+1"]
[EndTime "10:01:39 PDT"]
[Termination "Leonid_Starozhilov won by resignation"]

1. e4 {[%clk 0:03:00.9]} 1... e6 {[%clk 0:02:28.3]} 2. d4 {[%clk 0:03:00.5]}
2... d5 {[%clk 0:02:28.4]} 3. e5 {[%clk 0:03:00.6]} 3... c5 {[%clk 0:02:28.1]}
4. c3 {[%clk 0:03:01.2]} 4... Nc6 {[%clk 0:02:28.3]} 5. Nf3 {[%clk 0:03:01.7]}
5... Qb6 {[%clk 0:02:24.8]} 6. a3 {[%clk 0:03:01.8]} 6... f6 {[%clk 0:02:22.8]}
7. Bd3 {[%clk 0:03:01.2]} 7... Bd7 {[%clk 0:02:18.1]} 8. O-O {[%clk 0:02:58.3]}
8... cxd4 {[%clk 0:02:16.4]} 9. cxd4 {[%clk 0:02:57.7]} 9... Nxd4 {[%clk
0:02:16.3]} 10. Nxd4 {[%clk 0:02:57.5]} 10... Qxd4 {[%clk 0:02:16.4]} 11. Bg6+
{[%clk 0:02:57.4]} 11... hxg6 {[%clk 0:02:14.2]} 12. Qxd4 {[%clk 0:02:57.8]}
12... fxe5 {[%clk 0:02:14.1]} 13. Qxe5 {[%clk 0:02:50]} 1-0

[Event "*** SCC Grand Prix: Titled Tuesday Blitz"]
[Site "Chess.com"]
[Date "2020.06.02"]
[Round "1"]
[White "Gennady_Kozlov"]
[Black "Dare-Dare"]
[Result "1-0"]
[WhiteElo "2566"]
[BlackElo "2221"]
[TimeControl "180+1"]
[EndTime "10:02:10 PDT"]
[Termination "Gennady_Kozlov won by resignation"]

1. b3 {[%clk 0:02:53.2]} 1... d6 {[%clk 0:02:59.6]} 2. Bb2 {[%clk 0:02:52.2]}
2... e5 {[%clk 0:02:58.6]} 3. e3 {[%clk 0:02:52.2]} 3... f5 {[%clk 0:02:58.9]}
4. f4 {[%clk 0:02:51.8]} 4... e4 {[%clk 0:02:46.4]} 5. Qh5+ {[%clk 0:02:43.6]}
5... Ke7 {[%clk 0:02:23.4]} 6. Nc3 {[%clk 0:02:39.2]} 6... Nf6 {[%clk
0:02:16.7]} 7. Qg5 {[%clk 0:02:37.8]} 7... h6 {[%clk 0:02:13.6]} 8. Qh4 {[%clk
0:02:34.7]} 8... Kf7 {[%clk 0:02:11]} 9. Bc4+ {[%clk 0:02:32.3]} 9... d5 {[%clk
0:02:07.6]} 10. Nxd5 {[%clk 0:02:19.1]} 10... Nxd5 {[%clk 0:02:04.9]} 1-0

[Event "*** SCC Grand Prix: Titled Tuesday Blitz"]
[Site "Chess.com"]
[Date "2020.06.02"]
[Round "1"]
[White "Abund"]
[Black "ZarinaShafigullina"]
[Result "1-0"]
[WhiteElo "2626"]
[BlackElo "2288"]
[TimeControl "180+1"]
[EndTime "10:02:41 PDT"]
[Termination "Abund won by resignation"]

1. d4 {[%clk 0:03:00.9]} 1... Nf6 {[%clk 0:02:59.8]} 2. c4 {[%clk 0:02:59.9]}
2... e6 {[%clk 0:03:00]} 3. Nc3 {[%clk 0:02:59.8]} 3... Bb4 {[%clk 0:02:59]} 4.
f3 {[%clk 0:02:59]} 4... c5 {[%clk 0:02:56]} 5. d5 {[%clk 0:02:58.8]} 5... exd5
{[%clk 0:02:55.4]} 6. cxd5 {[%clk 0:02:59.7]} 6... O-O {[%clk 0:02:55]} 7. e4
{[%clk 0:02:58]} 7... d6 {[%clk 0:02:55.2]} 8. Ne2 {[%clk 0:02:56.7]} 8... Nbd7
{[%clk 0:02:55]} 9. Ng3 {[%clk 0:02:56.5]} 9... Ne5 {[%clk 0:02:54.3]} 10. Be2
{[%clk 0:02:56]} 10... Re8 {[%clk 0:02:53.1]} 11. O-O {[%clk 0:02:56]} 11... a6
{[%clk 0:02:49.8]} 12. Kh1 {[%clk 0:02:51.9]} 12... b5 {[%clk 0:02:49.1]} 13. a4
{[%clk 0:02:44.8]} 13... Bxc3 {[%clk 0:02:44.3]} 14. bxc3 {[%clk 0:02:45.1]}
14... Rb8 {[%clk 0:02:45.1]} 15. axb5 {[%clk 0:02:36.7]} 15... axb5 {[%clk
0:02:44.9]} 16. Be3 {[%clk 0:02:28.5]} 16... Bd7 {[%clk 0:02:42]} 17. Qd2 {[%clk
0:02:18.9]} 17... h5 {[%clk 0:02:33.2]} 18. Bg5 {[%clk 0:02:17.8]} 18... Ng6
{[%clk 0:02:21.3]} 19. Nxh5 {[%clk 0:02:14.5]} 19... Re5 {[%clk 0:02:17.8]} 20.
Bxf6 {[%clk 0:02:08.9]} 20... Rxh5 {[%clk 0:02:16.1]} 1-0

[Event "*** SCC Grand Prix: Titled Tuesday Blitz"]
[Site "Chess.com"]
[Date "2020.06.02"]
[Round "1"]
[White "Chessy222222"]
[Black "Sweafty"]
[Result "0-1"]
[WhiteElo "2112"]
[BlackElo "2511"]
[TimeControl "180+1"]
[EndTime "10:02:44 PDT"]
[Termination "Sweafty won by resignation"]

1. e4 {[%clk 0:03:00.9]} 1... d6 {[%clk 0:02:57.8]} 2. d4 {[%clk 0:02:59.5]}
2... Nf6 {[%clk 0:02:57.9]} 3. Nc3 {[%clk 0:02:58.7]} 3... e5 {[%clk 0:02:58.4]}
4. f4 {[%clk 0:02:56]} 4... Nbd7 {[%clk 0:02:54.1]} 5. Nf3 {[%clk 0:02:52.5]}
5... exd4 {[%clk 0:02:54]} 6. Qxd4 {[%clk 0:02:50.9]} 6... c6 {[%clk 0:02:54.3]}
7. Be2 {[%clk 0:02:47.1]} 7... Be7 {[%clk 0:02:54.3]} 8. Be3 {[%clk 0:02:44.2]}
8... O-O {[%clk 0:02:54.1]} 9. O-O {[%clk 0:02:42.6]} 9... Ng4 {[%clk
0:02:38.9]} 10. Bc1 {[%clk 0:02:11.1]} 10... d5 {[%clk 0:02:38.8]} 11. Kh1
{[%clk 0:01:51.3]} 11... Bc5 {[%clk 0:02:36.9]} 12. Qd3 {[%clk 0:01:50.4]} 12...
Nf2+ {[%clk 0:02:35.8]} 13. Rxf2 {[%clk 0:01:50.6]} 13... Bxf2 {[%clk
0:02:36.7]} 14. e5 {[%clk 0:01:50.2]} 14... Nc5 {[%clk 0:02:33]} 15. Qd1 {[%clk
0:01:47.1]} 15... Ne4 {[%clk 0:02:32.6]} 16. Qf1 {[%clk 0:01:41.9]} 16... Bb6
{[%clk 0:02:30.4]} 17. Bd3 {[%clk 0:01:36.3]} 17... Nf2+ {[%clk 0:02:28.6]} 0-1

[Event "*** SCC Grand Prix: Titled Tuesday Blitz"]
[Site "Chess.com"]
[Date "2020.06.02"]
[Round "1"]
[White "kot60"]
[Black "amintabatabaei"]
[Result "0-1"]
[WhiteElo "2441"]
[BlackElo "2933"]
[TimeControl "180+1"]
[EndTime "10:02:45 PDT"]
[Termination "amintabatabaei won by resignation"]

1. e4 {[%clk 0:03:00.4]} 1... c5 {[%clk 0:02:51.5]} 2. Nc3 {[%clk 0:02:59.9]}
2... Nc6 {[%clk 0:02:48]} 3. Bc4 {[%clk 0:02:59.6]} 3... e6 {[%clk 0:02:40.7]}
4. d3 {[%clk 0:02:59.5]} 4... Be7 {[%clk 0:02:40]} 5. Nge2 {[%clk 0:02:57.9]}
5... Nf6 {[%clk 0:02:40]} 6. O-O {[%clk 0:02:57.8]} 6... O-O {[%clk 0:02:40.3]}
7. h3 {[%clk 0:02:55.1]} 7... d5 {[%clk 0:02:40.5]} 8. exd5 {[%clk 0:02:54.5]}
8... exd5 {[%clk 0:02:41.4]} 9. Bb3 {[%clk 0:02:54.8]} 9... d4 {[%clk
0:02:39.5]} 10. Ne4 {[%clk 0:02:54.2]} 10... Na5 {[%clk 0:02:35.4]} 11. N2g3
{[%clk 0:02:51.4]} 11... Nxb3 {[%clk 0:02:33.9]} 12. axb3 {[%clk 0:02:49.3]}
12... Nxe4 {[%clk 0:02:31.7]} 13. dxe4 {[%clk 0:02:47.2]} 13... a5 {[%clk
0:02:25.5]} 14. f4 {[%clk 0:02:45.5]} 14... Bd7 {[%clk 0:02:24.2]} 15. e5 {[%clk
0:02:43.9]} 15... f5 {[%clk 0:02:19.4]} 16. exf6 {[%clk 0:02:39.2]} 16... Bxf6
{[%clk 0:02:16.6]} 17. Ne4 {[%clk 0:02:34.6]} 17... Be7 {[%clk 0:02:15.2]} 18.
Qh5 {[%clk 0:02:30.9]} 18... Rf5 {[%clk 0:02:10.9]} 19. Qf3 {[%clk 0:02:27.4]}
19... Bc6 {[%clk 0:02:10]} 20. Qd3 {[%clk 0:02:27.1]} 20... Qd5 {[%clk
0:02:05.6]} 21. Re1 {[%clk 0:02:25.9]} 21... Bh4 {[%clk 0:01:59.1]} 22. Re2
{[%clk 0:02:25.4]} 22... Re8 {[%clk 0:01:58.4]} 23. Nf6+ {[%clk 0:02:18.7]} 0-1

[Event "*** SCC Grand Prix: Titled Tuesday Blitz"]
[Site "Chess.com"]
[Date "2020.06.02"]
[Round "1"]
[White "Doraemon7"]
[Black "diablanni"]
[Result "0-1"]
[WhiteElo "2664"]
[BlackElo "2353"]
[TimeControl "180+1"]
[EndTime "10:03:04 PDT"]
[Termination "diablanni won by resignation"]

1. Nf3 {[%clk 0:03:00.9]} 1... c5 {[%clk 0:02:59.7]} 2. c4 {[%clk 0:03:01]} 2...
Nf6 {[%clk 0:02:58.1]} 3. Nc3 {[%clk 0:02:59]} 3... g6 {[%clk 0:02:57.9]} 4. d4
{[%clk 0:02:58.5]} 4... cxd4 {[%clk 0:02:58.4]} 5. Nxd4 {[%clk 0:02:58.8]} 5...
Nc6 {[%clk 0:02:58.7]} 6. e4 {[%clk 0:02:59.5]} 6... d6 {[%clk 0:02:57.9]} 7.
Be2 {[%clk 0:02:59]} 7... Nxd4 {[%clk 0:02:57]} 8. Qxd4 {[%clk 0:02:59.9]} 8...
Bg7 {[%clk 0:02:55.7]} 9. Be3 {[%clk 0:02:57.3]} 9... O-O {[%clk 0:02:49.8]} 10.
Qd2 {[%clk 0:02:51.8]} 10... Be6 {[%clk 0:02:47]} 11. O-O {[%clk 0:02:51]} 11...
Qa5 {[%clk 0:02:44]} 12. f4 {[%clk 0:02:45.9]} 12... Rfc8 {[%clk 0:02:34.5]} 13.
b3 {[%clk 0:02:21.1]} 13... b5 {[%clk 0:02:32.5]} 14. f5 {[%clk 0:02:12.8]}
14... Bd7 {[%clk 0:02:26.3]} 15. Bd4 {[%clk 0:01:43.4]} 15... Nxe4 {[%clk
0:02:11.4]} 0-1

[Event "*** SCC Grand Prix: Titled Tuesday Blitz"]
[Site "Chess.com"]
[Date "2020.06.02"]
[Round "1"]
[White "kingmonkey2006"]
[Black "Luibov_AN"]
[Result "1-0"]
[WhiteElo "2495"]
[BlackElo "2053"]
[TimeControl "180+1"]
[EndTime "10:03:21 PDT"]
[Termination "kingmonkey2006 won by resignation"]

1. e4 {[%clk 0:03:00.8]} 1... g6 {[%clk 0:02:57.3]} 2. d4 {[%clk 0:03:00.8]}
2... Bg7 {[%clk 0:02:56]} 3. Nc3 {[%clk 0:03:01.1]} 3... c5 {[%clk 0:02:50.5]}
4. d5 {[%clk 0:02:56.3]} 4... e5 {[%clk 0:02:49.4]} 5. d6 {[%clk 0:02:53.5]}
5... Nf6 {[%clk 0:02:41.6]} 6. Bg5 {[%clk 0:02:52.8]} 6... Qa5 {[%clk
0:02:36.7]} 7. Qd2 {[%clk 0:02:44.5]} 7... O-O {[%clk 0:02:25.9]} 8. Nf3 {[%clk
0:02:39.7]} 8... Nc6 {[%clk 0:02:25.2]} 9. O-O-O {[%clk 0:02:34]} 9... Nd4
{[%clk 0:02:22.5]} 10. Kb1 {[%clk 0:02:11.1]} 10... Re8 {[%clk 0:02:13.1]} 11.
Bxf6 {[%clk 0:01:59.4]} 11... Bxf6 {[%clk 0:02:12.1]} 12. Nd5 {[%clk 0:01:59.6]}
12... Qd8 {[%clk 0:02:12.6]} 13. Nc7 {[%clk 0:01:58.2]} 13... b5 {[%clk
0:01:57.5]} 14. Nxa8 {[%clk 0:01:56.6]} 14... Bb7 {[%clk 0:01:57.7]} 15. Nc7
{[%clk 0:01:55.9]} 15... Bxe4 {[%clk 0:01:57.7]} 16. Nxd4 {[%clk 0:01:54.6]}
16... exd4 {[%clk 0:01:56.6]} 17. Nxe8 {[%clk 0:01:55.1]} 17... Qxe8 {[%clk
0:01:56.8]} 18. Bd3 {[%clk 0:01:55.3]} 18... Bf5 {[%clk 0:01:54.8]} 19. Bxf5
{[%clk 0:01:55.1]} 1-0

[Event "*** SCC Grand Prix: Titled Tuesday Blitz"]
[Site "Chess.com"]
[Date "2020.06.02"]
[Round "1"]
[White "cukin84"]
[Black "Zenzo"]
[Result "0-1"]
[WhiteElo "2210"]
[BlackElo "2558"]
[TimeControl "180+1"]
[EndTime "10:03:29 PDT"]
[Termination "Zenzo won by resignation"]

1. e4 {[%clk 0:02:58.9]} 1... e5 {[%clk 0:03:00.2]} 2. Nf3 {[%clk 0:02:58.5]}
2... Nc6 {[%clk 0:03:00.7]} 3. c3 {[%clk 0:02:58.3]} 3... Nf6 {[%clk 0:03:00.3]}
4. d4 {[%clk 0:02:57.8]} 4... d6 {[%clk 0:03:00.2]} 5. Be2 {[%clk 0:02:55.8]}
5... exd4 {[%clk 0:02:57.9]} 6. cxd4 {[%clk 0:02:54.1]} 6... Be7 {[%clk
0:02:57.1]} 7. O-O {[%clk 0:02:49]} 7... O-O {[%clk 0:02:56.5]} 8. Nc3 {[%clk
0:02:48.5]} 8... Re8 {[%clk 0:02:54.4]} 9. Bg5 {[%clk 0:02:41.3]} 9... h6 {[%clk
0:02:52]} 10. Bh4 {[%clk 0:02:40.9]} 10... Nxe4 {[%clk 0:02:44.2]} 11. Nxe4
{[%clk 0:02:09.7]} 11... Bxh4 {[%clk 0:02:43.1]} 12. Nxh4 {[%clk 0:01:50.6]}
12... Qxh4 {[%clk 0:02:44]} 13. Bf3 {[%clk 0:01:45.6]} 13... Rxe4 {[%clk
0:02:30.2]} 14. g3 {[%clk 0:01:36]} 14... Qe7 {[%clk 0:02:26.1]} 15. Bxe4 {[%clk
0:01:34.5]} 15... Qxe4 {[%clk 0:02:27]} 16. d5 {[%clk 0:01:34.4]} 16... Ne5
{[%clk 0:02:25.4]} 17. f4 {[%clk 0:01:32.1]} 17... Qe3+ {[%clk 0:02:15.6]} 18.
Kh1 {[%clk 0:01:31.2]} 18... Bg4 {[%clk 0:02:14.8]} 19. Re1 {[%clk 0:01:17.3]}
19... Bf3+ {[%clk 0:02:10]} 0-1

[Event "*** SCC Grand Prix: Titled Tuesday Blitz"]
[Site "Chess.com"]
[Date "2020.06.02"]
[Round "1"]
[White "baki83"]
[Black "Loiacono_Antonio"]
[Result "1-0"]
[WhiteElo "2828"]
[BlackElo "2413"]
[TimeControl "180+1"]
[EndTime "10:03:46 PDT"]
[Termination "baki83 won by resignation"]

1. d4 {[%clk 0:03:00.9]} 1... d5 {[%clk 0:02:59.8]} 2. Nf3 {[%clk 0:03:00.3]}
2... Nf6 {[%clk 0:02:59.2]} 3. Bf4 {[%clk 0:02:59.6]} 3... c6 {[%clk 0:02:58.1]}
4. e3 {[%clk 0:02:58.2]} 4... Bf5 {[%clk 0:02:56]} 5. Nbd2 {[%clk 0:02:56.8]}
5... e6 {[%clk 0:02:55.8]} 6. Ne5 {[%clk 0:02:48]} 6... Nbd7 {[%clk 0:02:53.9]}
7. g4 {[%clk 0:02:47.5]} 7... Bg6 {[%clk 0:02:43.5]} 8. h4 {[%clk 0:02:46.2]}
8... h5 {[%clk 0:02:07]} 9. Nxg6 {[%clk 0:02:45.2]} 9... fxg6 {[%clk 0:02:07.9]}
10. Bd3 {[%clk 0:02:40.1]} 10... Kf7 {[%clk 0:02:04.4]} 11. Nf3 {[%clk
0:02:28.4]} 11... Ne4 {[%clk 0:01:44.9]} 12. Bxe4 {[%clk 0:02:23.4]} 12... dxe4
{[%clk 0:01:45.8]} 13. Ng5+ {[%clk 0:02:23.8]} 13... Kg8 {[%clk 0:01:37]} 14. c3
{[%clk 0:02:20.1]} 14... Nf6 {[%clk 0:01:28.2]} 15. gxh5 {[%clk 0:02:13.6]}
15... Nxh5 {[%clk 0:01:25.2]} 16. Be5 {[%clk 0:02:07.6]} 16... Be7 {[%clk
0:01:20.2]} 17. Nxe6 {[%clk 0:02:03.5]} 17... Qd5 {[%clk 0:01:14.9]} 18. Nc7
{[%clk 0:02:01.7]} 1-0

[Event "*** SCC Grand Prix: Titled Tuesday Blitz"]
[Site "Chess.com"]
[Date "2020.06.02"]
[Round "1"]
[White "OK97"]
[Black "MergenKakabaev"]
[Result "1-0"]
[WhiteElo "2778"]
[BlackElo "2396"]
[TimeControl "180+1"]
[EndTime "10:03:54 PDT"]
[Termination "OK97 won by resignation"]

1. e4 {[%clk 0:02:59]} 1... e5 {[%clk 0:02:55.7]} 2. Nf3 {[%clk 0:02:59.1]} 2...
Nc6 {[%clk 0:02:55.7]} 3. Bb5 {[%clk 0:02:59.2]} 3... a6 {[%clk 0:02:55.7]} 4.
Ba4 {[%clk 0:02:59.6]} 4... Nf6 {[%clk 0:02:55.5]} 5. O-O {[%clk 0:03:00]} 5...
Be7 {[%clk 0:02:52.6]} 6. Re1 {[%clk 0:03:00.2]} 6... b5 {[%clk 0:02:52.5]} 7.
Bb3 {[%clk 0:03:00.6]} 7... d6 {[%clk 0:02:53.1]} 8. c3 {[%clk 0:03:00.6]} 8...
O-O {[%clk 0:02:52.3]} 9. d4 {[%clk 0:03:00.3]} 9... Bg4 {[%clk 0:02:51.7]} 10.
Be3 {[%clk 0:02:59.5]} 10... Na5 {[%clk 0:02:45.9]} 11. dxe5 {[%clk 0:02:53.8]}
11... dxe5 {[%clk 0:02:43.9]} 12. Qxd8 {[%clk 0:02:50]} 12... Raxd8 {[%clk
0:02:42]} 13. Nxe5 {[%clk 0:02:49.7]} 13... Nxb3 {[%clk 0:02:42]} 14. axb3
{[%clk 0:02:49]} 14... Bc8 {[%clk 0:02:42.3]} 15. Nc6 {[%clk 0:02:46.4]} 15...
Rde8 {[%clk 0:02:37.2]} 16. Nxe7+ {[%clk 0:02:46.5]} 16... Rxe7 {[%clk
0:02:34.3]} 17. Bc5 {[%clk 0:02:45.5]} 17... Rxe4 {[%clk 0:02:30.8]} 18. Rxe4
{[%clk 0:02:45.4]} 18... Nxe4 {[%clk 0:02:31.7]} 19. Bxf8 {[%clk 0:02:45.5]}
19... Kxf8 {[%clk 0:02:32.6]} 20. f3 {[%clk 0:02:39.5]} 20... Nc5 {[%clk
0:02:27.5]} 21. Nd2 {[%clk 0:02:39.6]} 21... Ke7 {[%clk 0:02:25.2]} 22. Kf2
{[%clk 0:02:34.4]} 22... f5 {[%clk 0:02:13.8]} 23. Ke3 {[%clk 0:02:33.4]} 23...
Kf6 {[%clk 0:02:12.8]} 24. f4 {[%clk 0:01:59]} 24... Bb7 {[%clk 0:02:05.8]} 25.
g3 {[%clk 0:01:58.9]} 25... Ne6 {[%clk 0:02:02.4]} 26. b4 {[%clk 0:01:52]} 26...
c5 {[%clk 0:01:57.4]} 27. Nb3 {[%clk 0:01:43.9]} 27... cxb4 {[%clk 0:01:54]} 28.
cxb4 {[%clk 0:01:44.8]} 1-0

[Event "*** SCC Grand Prix: Titled Tuesday Blitz"]
[Site "Chess.com"]
[Date "2020.06.02"]
[Round "1"]
[White "verdest"]
[Black "WeAintSurePal"]
[Result "1-0"]
[WhiteElo "2583"]
[BlackElo "2244"]
[TimeControl "180+1"]
[EndTime "10:03:55 PDT"]
[Termination "verdest won by checkmate"]

1. d4 {[%clk 0:03:00.2]} 1... d5 {[%clk 0:02:57.3]} 2. c4 {[%clk 0:02:58]} 2...
c6 {[%clk 0:02:57.2]} 3. Nf3 {[%clk 0:02:57.8]} 3... Nf6 {[%clk 0:02:56.5]} 4.
e3 {[%clk 0:02:57.8]} 4... a6 {[%clk 0:02:57]} 5. Nc3 {[%clk 0:02:54.6]} 5... g6
{[%clk 0:02:56.7]} 6. b3 {[%clk 0:02:49.9]} 6... Bg7 {[%clk 0:02:54.3]} 7. Be2
{[%clk 0:02:46.2]} 7... O-O {[%clk 0:02:46.8]} 8. O-O {[%clk 0:02:46]} 8... b5
{[%clk 0:02:45]} 9. Bb2 {[%clk 0:02:44.2]} 9... Nbd7 {[%clk 0:02:41.4]} 10. Rc1
{[%clk 0:02:41]} 10... Bb7 {[%clk 0:02:38.5]} 11. Qc2 {[%clk 0:02:38.6]} 11...
Rc8 {[%clk 0:02:37.4]} 12. Rfd1 {[%clk 0:02:38.1]} 12... e6 {[%clk 0:02:36.8]}
13. e4 {[%clk 0:02:34.7]} 13... dxe4 {[%clk 0:02:28.6]} 14. Nxe4 {[%clk
0:02:35.6]} 14... Nxe4 {[%clk 0:02:28.7]} 15. Qxe4 {[%clk 0:02:35.2]} 15... Qb6
{[%clk 0:02:23]} 16. Qh4 {[%clk 0:02:17.4]} 16... Rfd8 {[%clk 0:02:20.5]} 17.
Ng5 {[%clk 0:02:11.8]} 17... h6 {[%clk 0:02:07.1]} 18. Ne4 {[%clk 0:02:02.3]}
18... Nf8 {[%clk 0:01:46.6]} 19. Nf6+ {[%clk 0:01:56.3]} 19... Kh8 {[%clk
0:01:43.1]} 20. d5 {[%clk 0:01:48.3]} 20... cxd5 {[%clk 0:01:39.7]} 21. Nd7
{[%clk 0:01:40]} 21... Rxd7 {[%clk 0:01:29.7]} 22. Qxh6+ {[%clk 0:01:39.3]}
22... Kg8 {[%clk 0:01:30]} 23. Qxg7# {[%clk 0:01:39.4]} 1-0

[Event "*** SCC Grand Prix: Titled Tuesday Blitz"]
[Site "Chess.com"]
[Date "2020.06.02"]
[Round "1"]
[White "Majesth"]
[Black "Illingworth"]
[Result "1-0"]
[WhiteElo "2450"]
[BlackElo "2891"]
[TimeControl "180+1"]
[EndTime "10:03:58 PDT"]
[Termination "Majesth won by resignation"]

1. d4 {[%clk 0:03:00.9]} 1... d5 {[%clk 0:02:59.1]} 2. Bg5 {[%clk 0:02:59.9]}
2... f6 {[%clk 0:02:58.9]} 3. Bh4 {[%clk 0:03:00]} 3... Nh6 {[%clk 0:02:58.8]}
4. e3 {[%clk 0:03:00]} 4... Nf5 {[%clk 0:02:56.6]} 5. Bg3 {[%clk 0:03:00]} 5...
h5 {[%clk 0:02:53.7]} 6. Be2 {[%clk 0:02:59.8]} 6... h4 {[%clk 0:02:51]} 7. Bh5+
{[%clk 0:02:58.8]} 7... Kd7 {[%clk 0:02:50.3]} 8. Bf4 {[%clk 0:02:59.2]} 8... g5
{[%clk 0:02:46.5]} 9. e4 {[%clk 0:02:58.1]} 9... dxe4 {[%clk 0:02:38.1]} 10. d5
{[%clk 0:02:57.8]} 10... gxf4 {[%clk 0:02:25.4]} 11. Bg4 {[%clk 0:02:57.4]}
11... Kd6 {[%clk 0:02:17.6]} 12. Nc3 {[%clk 0:02:56.3]} 12... Ng3 {[%clk
0:01:22.4]} 13. hxg3 {[%clk 0:02:47.4]} 13... f5 {[%clk 0:00:44.1]} 14. Nb5+
{[%clk 0:02:26.9]} 14... Kc5 {[%clk 0:00:38.1]} 15. Qd4+ {[%clk 0:02:20.6]}
15... Kxb5 {[%clk 0:00:38.6]} 16. Be2+ {[%clk 0:02:17.9]} 16... Ka5 {[%clk
0:00:39.1]} 17. Qc5+ {[%clk 0:02:12.6]} 1-0

[Event "*** SCC Grand Prix: Titled Tuesday Blitz"]
[Site "Chess.com"]
[Date "2020.06.02"]
[Round "1"]
[White "XDPS"]
[Black "OnatB"]
[Result "1-0"]
[WhiteElo "2679"]
[BlackElo "2333"]
[TimeControl "180+1"]
[EndTime "10:03:58 PDT"]
[Termination "XDPS won by resignation"]

1. e4 {[%clk 0:02:52.6]} 1... c5 {[%clk 0:02:58.2]} 2. Nf3 {[%clk 0:02:51.8]}
2... Nc6 {[%clk 0:02:58]} 3. Bb5 {[%clk 0:02:50.3]} 3... g6 {[%clk 0:02:57.9]}
4. Bxc6 {[%clk 0:02:46.3]} 4... bxc6 {[%clk 0:02:58.8]} 5. O-O {[%clk
0:02:46.4]} 5... Bg7 {[%clk 0:02:59.3]} 6. Re1 {[%clk 0:02:46.7]} 6... e5 {[%clk
0:02:59.9]} 7. c3 {[%clk 0:02:46.4]} 7... Qb6 {[%clk 0:02:58.1]} 8. Na3 {[%clk
0:02:42.8]} 8... Ba6 {[%clk 0:02:56]} 9. d3 {[%clk 0:02:41.2]} 9... Ne7 {[%clk
0:02:53.7]} 10. Nc4 {[%clk 0:02:41.1]} 10... Qc7 {[%clk 0:02:52.5]} 11. Qa4
{[%clk 0:02:23.8]} 11... Bb5 {[%clk 0:02:51.7]} 12. Qa3 {[%clk 0:02:24]} 12...
d6 {[%clk 0:02:49.8]} 13. Nfd2 {[%clk 0:02:18]} 13... O-O {[%clk 0:02:48.1]} 14.
Nf1 {[%clk 0:01:56.1]} 14... h6 {[%clk 0:02:46.8]} 15. Be3 {[%clk 0:01:54.4]}
15... Kh7 {[%clk 0:02:46.9]} 16. Nxd6 {[%clk 0:01:51.7]} 16... Bxd3 {[%clk
0:02:44]} 17. Bxc5 {[%clk 0:01:48.2]} 17... a5 {[%clk 0:02:34.4]} 18. Rad1
{[%clk 0:01:47.3]} 18... Ba6 {[%clk 0:02:32.8]} 19. Ne3 {[%clk 0:01:41.7]} 19...
f5 {[%clk 0:02:21.7]} 20. exf5 {[%clk 0:01:40.3]} 20... Nxf5 {[%clk 0:02:21.3]}
21. Ndxf5 {[%clk 0:01:38.9]} 21... gxf5 {[%clk 0:02:21.3]} 22. Bxf8 {[%clk
0:01:39.2]} 22... Bxf8 {[%clk 0:02:17.4]} 23. Qa4 {[%clk 0:01:39.6]} 23... Bc5
{[%clk 0:02:15]} 24. Nxf5 {[%clk 0:01:36.5]} 24... Rf8 {[%clk 0:02:13.3]} 25.
Qe4 {[%clk 0:01:36.7]} 25... Bxf2+ {[%clk 0:02:03.6]} 26. Kxf2 {[%clk
0:01:34.7]} 26... Bc8 {[%clk 0:02:04.5]} 27. g4 {[%clk 0:01:34.9]} 1-0